[Event "Early-Titled-Tuesday-Blitz-February-13-2024"]
[Site "Chess.com"]
[Date "2024.02.13"]
[Round "11"]
[White "Jaka_Brilej"]
[Black "isaak2009"]
[Result "0-1"]
[WhiteElo "2537"]
[BlackElo "2683"]
[TimeControl "180+1"]
[EndTime "10:11:16 PST"]
[Termination "isaak2009 won by resignation"]

1. e4 {[%clk 0:03:00.9]} 1... e5 {[%clk 0:02:59.4]} 2. Nf3 {[%clk 0:03:00.7]}
2... Nc6 {[%clk 0:02:59.7]} 3. Bc4 {[%clk 0:03:01]} 3... Nf6 {[%clk 0:02:59.3]}
4. Ng5 {[%clk 0:03:01.1]} 4... d5 {[%clk 0:02:58.2]} 5. exd5 {[%clk 0:03:02]}
5... Na5 {[%clk 0:02:58.5]} 6. Bb5+ {[%clk 0:03:02.2]} 6... c6 {[%clk
0:02:59.2]} 7. dxc6 {[%clk 0:03:02.2]} 7... bxc6 {[%clk 0:03:00.1]} 8. Bd3
{[%clk 0:03:02.7]} 8... Nd5 {[%clk 0:02:59.7]} 9. Nf3 {[%clk 0:03:02.5]} 9...
Bd6 {[%clk 0:02:59.8]} 10. O-O {[%clk 0:03:03.1]} 10... O-O {[%clk 0:03:00.1]}
11. Re1 {[%clk 0:03:03.7]} 11... f5 {[%clk 0:03:00.6]} 12. Nxe5 {[%clk
0:03:03.9]} 12... Qf6 {[%clk 0:03:01]} 13. Nf3 {[%clk 0:03:04.2]} 13... g5
{[%clk 0:03:01.6]} 14. c4 {[%clk 0:03:03.4]} 14... Nf4 {[%clk 0:03:01.4]} 15.
Bf1 {[%clk 0:03:03.9]} 15... g4 {[%clk 0:03:01.8]} 16. d4 {[%clk 0:03:02.7]}
16... gxf3 {[%clk 0:03:02.3]} 17. Qxf3 {[%clk 0:03:02.3]} 17... Ne6 {[%clk
0:03:02.9]} 18. Qc3 {[%clk 0:02:53.5]} 18... Nb7 {[%clk 0:02:59]} 19. c5 {[%clk
0:02:53.2]} 19... Bc7 {[%clk 0:02:57.9]} 20. b4 {[%clk 0:02:50.2]} 20... a5
{[%clk 0:02:55.8]} 21. b5 {[%clk 0:02:50.1]} 21... cxb5 {[%clk 0:02:51.8]} 22.
Bxb5 {[%clk 0:02:43.3]} 22... a4 {[%clk 0:02:47.7]} 23. Bb2 {[%clk 0:01:52]}
23... Ba5 {[%clk 0:02:39.6]} 24. Qg3+ {[%clk 0:01:52.6]} 24... Qg6 {[%clk
0:02:33.8]} 25. Re2 {[%clk 0:01:40.3]} 25... Qxg3 {[%clk 0:01:57.5]} 26. hxg3
{[%clk 0:01:41.2]} 26... Nbd8 {[%clk 0:01:58]} 27. Na3 {[%clk 0:01:36.1]} 27...
Ba6 {[%clk 0:01:56.2]} 28. Bc4 {[%clk 0:01:16.8]} 28... Bxc4 {[%clk 0:01:44.9]}
29. Nxc4 {[%clk 0:01:17.7]} 29... f4 {[%clk 0:01:32.7]} 30. Rc1 {[%clk
0:00:54.2]} 30... fxg3 {[%clk 0:01:27.1]} 31. fxg3 {[%clk 0:00:55.1]} 31... Bc7
{[%clk 0:01:17]} 32. Ne5 {[%clk 0:00:49.9]} 32... a3 {[%clk 0:01:15.5]} 33. Bc3
{[%clk 0:00:46.7]} 33... Ra4 {[%clk 0:01:15.2]} 34. Rd1 {[%clk 0:00:31]} 34...
Bxe5 {[%clk 0:00:43.1]} 35. Rxe5 {[%clk 0:00:31]} 35... Rc4 {[%clk 0:00:43.9]}
36. Rd3 {[%clk 0:00:30.6]} 36... Nc7 {[%clk 0:00:42]} 37. Rg5+ {[%clk
0:00:26.3]} 37... Kf7 {[%clk 0:00:35.8]} 38. Rf3+ {[%clk 0:00:26.1]} 38... Ke8
{[%clk 0:00:35.5]} 39. Re5+ {[%clk 0:00:22.5]} 39... Nde6 {[%clk 0:00:30.7]} 40.
Rfe3 {[%clk 0:00:21.9]} 40... Kd7 {[%clk 0:00:28.6]} 41. Rh5 {[%clk 0:00:17.6]}
41... Rf7 {[%clk 0:00:28.3]} 42. d5 {[%clk 0:00:13.3]} 42... Nxc5 {[%clk
0:00:27.5]} 43. Ba5 {[%clk 0:00:13.8]} 43... Ne4 {[%clk 0:00:25.5]} 44. Rxa3
{[%clk 0:00:13.5]} 44... Rc1+ {[%clk 0:00:19.3]} 45. Kh2 {[%clk 0:00:14.1]}
45... Nf2 {[%clk 0:00:17.3]} 46. g4 {[%clk 0:00:14.7]} 46... Nxg4+ {[%clk
0:00:17.4]} 47. Kg3 {[%clk 0:00:15.1]} 47... Nf6 {[%clk 0:00:17.5]} 48. Rh6
{[%clk 0:00:11.4]} 48... Nfxd5 {[%clk 0:00:16.3]} 49. Rd3 {[%clk 0:00:10.3]}
49... Kc8 {[%clk 0:00:15.8]} 50. Bd2 {[%clk 0:00:07.1]} 50... Rc2 {[%clk
0:00:15.9]} 51. Rh5 {[%clk 0:00:07]} 51... Rg7+ {[%clk 0:00:16.1]} 52. Kh2
{[%clk 0:00:07]} 52... Rxg2+ {[%clk 0:00:12.8]} 53. Kxg2 {[%clk 0:00:07]} 53...
Nf4+ {[%clk 0:00:12.8]} 54. Kf3 {[%clk 0:00:06.8]} 54... Nxh5 {[%clk 0:00:11.4]}
55. a4 {[%clk 0:00:07.7]} 55... Rc4 {[%clk 0:00:10.7]} 56. a5 {[%clk 0:00:07.7]}
56... Nf6 {[%clk 0:00:10.8]} 57. Rd6 {[%clk 0:00:07.5]} 57... Ne4 {[%clk
0:00:10.4]} 58. Rd3 {[%clk 0:00:06.2]} 58... Nxd2+ {[%clk 0:00:09.5]} 59. Rxd2
{[%clk 0:00:07.1]} 59... Rc5 {[%clk 0:00:06.2]} 60. Rh2 {[%clk 0:00:06.9]} 60...
Rf5+ {[%clk 0:00:06.4]} 61. Kg3 {[%clk 0:00:06.9]} 61... h5 {[%clk 0:00:04.2]}
62. Ra2 {[%clk 0:00:07.1]} 62... Kb7 {[%clk 0:00:04.3]} 63. Kh4 {[%clk
0:00:07.5]} 63... Ne8 {[%clk 0:00:03.5]} 64. Rb2+ {[%clk 0:00:07.4]} 64... Ka6
{[%clk 0:00:03.2]} 65. Rb6+ {[%clk 0:00:08.1]} 65... Kxa5 {[%clk 0:00:03.6]} 66.
Re6 {[%clk 0:00:09]} 66... Nf6 {[%clk 0:00:03.1]} 67. Re7 {[%clk 0:00:09.3]}
67... Kb5 {[%clk 0:00:03.4]} 68. Rc7 {[%clk 0:00:09.6]} 68... Kb6 {[%clk
0:00:03.5]} 69. Rc1 {[%clk 0:00:09.8]} 69... Nd5 {[%clk 0:00:03.4]} 70. Rb1+
{[%clk 0:00:10.3]} 70... Kc6 {[%clk 0:00:03.6]} 71. Rc1+ {[%clk 0:00:11.2]}
71... Kd6 {[%clk 0:00:04.2]} 72. Rd1 {[%clk 0:00:11.7]} 72... Ke6 {[%clk
0:00:04.8]} 73. Rf1 {[%clk 0:00:11.8]} 73... Rxf1 {[%clk 0:00:04.5]} 0-1

[Event "Early-Titled-Tuesday-Blitz-February-13-2024"]
[Site "Chess.com"]
[Date "2024.02.13"]
[Round "11"]
[White "HamedWafa4"]
[Black "viktorskliarov"]
[Result "1-0"]
[WhiteElo "2747"]
[BlackElo "2597"]
[TimeControl "180+1"]
[EndTime "10:11:21 PST"]
[Termination "HamedWafa4 won by resignation"]

1. e4 {[%clk 0:03:00.9]} 1... c5 {[%clk 0:02:59.4]} 2. Nf3 {[%clk 0:02:59.8]}
2... Nc6 {[%clk 0:02:57.7]} 3. Bb5 {[%clk 0:02:59.3]} 3... e6 {[%clk 0:02:56.1]}
4. Bxc6 {[%clk 0:02:56.4]} 4... bxc6 {[%clk 0:02:49.6]} 5. O-O {[%clk
0:02:56.2]} 5... Ne7 {[%clk 0:02:48.7]} 6. b3 {[%clk 0:02:54.5]} 6... Ng6 {[%clk
0:02:44.8]} 7. Bb2 {[%clk 0:02:53.9]} 7... f6 {[%clk 0:02:43]} 8. c3 {[%clk
0:02:52.2]} 8... Be7 {[%clk 0:02:38.8]} 9. d4 {[%clk 0:02:51.9]} 9... cxd4
{[%clk 0:02:32.3]} 10. cxd4 {[%clk 0:02:52.8]} 10... O-O {[%clk 0:02:32.3]} 11.
d5 {[%clk 0:02:50.7]} 11... cxd5 {[%clk 0:02:26]} 12. exd5 {[%clk 0:02:50.5]}
12... Bb7 {[%clk 0:02:24.8]} 13. Nc3 {[%clk 0:02:49.8]} 13... Bb4 {[%clk
0:01:54.1]} 14. dxe6 {[%clk 0:02:29.8]} 14... dxe6 {[%clk 0:01:52.1]} 15. Qe2
{[%clk 0:02:30.4]} 15... Nf4 {[%clk 0:00:43.8]} 16. Qe3 {[%clk 0:02:02.6]} 16...
Bxc3 {[%clk 0:00:18.9]} 17. Bxc3 {[%clk 0:02:01]} 17... e5 {[%clk 0:00:19.3]}
18. Rfd1 {[%clk 0:01:53.5]} 18... Qc8 {[%clk 0:00:19.3]} 19. Bb4 {[%clk
0:01:31.2]} 19... Qg4 {[%clk 0:00:16]} 20. Ne1 {[%clk 0:01:31.8]} 20... Nxg2
{[%clk 0:00:13.4]} 21. Qg3 {[%clk 0:01:31.7]} 21... Qxb4 {[%clk 0:00:09.7]} 22.
Rd7 {[%clk 0:01:23.2]} 22... Rf7 {[%clk 0:00:10]} 23. Rxf7 {[%clk 0:01:22.9]}
23... Kxf7 {[%clk 0:00:10.7]} 24. Nxg2 {[%clk 0:01:23.6]} 24... Rd8 {[%clk
0:00:09.1]} 25. Rc1 {[%clk 0:01:21.7]} 25... Rd7 {[%clk 0:00:09.2]} 26. Qh3
{[%clk 0:01:20.6]} 26... Qd2 {[%clk 0:00:08.8]} 27. Rf1 {[%clk 0:01:15.4]} 27...
h6 {[%clk 0:00:06.4]} 28. Qh5+ {[%clk 0:01:15.2]} 28... Kf8 {[%clk 0:00:06.3]}
29. h4 {[%clk 0:01:02.5]} 29... Qxa2 {[%clk 0:00:05.3]} 30. Qg4 {[%clk
0:00:56.8]} 30... Qd2 {[%clk 0:00:05.4]} 31. h5 {[%clk 0:00:57.2]} 31... Qd3
{[%clk 0:00:04.8]} 32. Nh4 {[%clk 0:00:56]} 32... Qe4 {[%clk 0:00:03.6]} 33. Qh3
{[%clk 0:00:48.9]} 33... Rd6 {[%clk 0:00:01.8]} 34. Ng6+ {[%clk 0:00:47.9]}
34... Ke8 {[%clk 0:00:02.2]} 35. Rc1 {[%clk 0:00:47.3]} 35... Bc6 {[%clk
0:00:02.3]} 36. Kh2 {[%clk 0:00:39]} 36... Kd8 {[%clk 0:00:02.5]} 37. Qg3 {[%clk
0:00:35.8]} 37... Kc7 {[%clk 0:00:02.8]} 38. Nh4 {[%clk 0:00:34.9]} 38... Qf4
{[%clk 0:00:02.9]} 39. Qxf4 {[%clk 0:00:33.2]} 39... exf4 {[%clk 0:00:03.8]} 40.
Rg1 {[%clk 0:00:33.9]} 40... Rd7 {[%clk 0:00:03.8]} 41. Nf5 {[%clk 0:00:33.6]}
41... Bd5 {[%clk 0:00:04.4]} 42. b4 {[%clk 0:00:33.7]} 42... Be6 {[%clk
0:00:04]} 43. Nxg7 {[%clk 0:00:33.8]} 43... Bc4 {[%clk 0:00:04.2]} 44. Nf5
{[%clk 0:00:33.6]} 44... Rd5 {[%clk 0:00:04.7]} 45. Rg7+ {[%clk 0:00:32.7]}
45... Kb6 {[%clk 0:00:04.4]} 46. Ne7 {[%clk 0:00:29.5]} 46... Rxh5+ {[%clk
0:00:04.5]} 47. Kg2 {[%clk 0:00:30.2]} 47... Kb5 {[%clk 0:00:04.6]} 48. Kf3
{[%clk 0:00:29.4]} 48... Kxb4 {[%clk 0:00:05]} 49. Kxf4 {[%clk 0:00:29.8]} 49...
a5 {[%clk 0:00:05.5]} 50. Nc6+ {[%clk 0:00:30.3]} 50... Kc3 {[%clk 0:00:05]} 51.
Ra7 {[%clk 0:00:27.8]} 51... a4 {[%clk 0:00:05.4]} 52. Rxa4 {[%clk 0:00:25.1]}
52... Bb5 {[%clk 0:00:05.7]} 53. Ra5 {[%clk 0:00:25.8]} 53... Rd5 {[%clk
0:00:04.9]} 54. Ne7 {[%clk 0:00:24.6]} 54... Rd4+ {[%clk 0:00:04.7]} 55. Kg3
{[%clk 0:00:24.5]} 55... Bd3 {[%clk 0:00:04.6]} 56. Nc6 {[%clk 0:00:23]} 56...
Rd6 {[%clk 0:00:04.6]} 57. Ne7 {[%clk 0:00:22.5]} 57... Rd7 {[%clk 0:00:02.7]}
58. Nf5 {[%clk 0:00:22.1]} 58... Rc7 {[%clk 0:00:02.2]} 59. Nxh6 {[%clk
0:00:21.6]} 59... Kd2 {[%clk 0:00:02.1]} 60. Ng4 {[%clk 0:00:21.5]} 60... f5
{[%clk 0:00:02]} 61. Ne3 {[%clk 0:00:21.7]} 61... Rg7+ {[%clk 0:00:01.9]} 62.
Kf4 {[%clk 0:00:21.7]} 62... Rf7 {[%clk 0:00:02.6]} 63. Rd5 {[%clk 0:00:20]}
63... Ke2 {[%clk 0:00:02.5]} 64. f3 {[%clk 0:00:20.5]} 64... Bb1 {[%clk
0:00:02.2]} 65. Nc4 {[%clk 0:00:20]} 65... Rf8 {[%clk 0:00:02.5]} 66. Ne5 {[%clk
0:00:20.4]} 66... Bc2 {[%clk 0:00:02.5]} 67. Rc5 {[%clk 0:00:20.6]} 67... Bb1
{[%clk 0:00:02.6]} 68. Rb5 {[%clk 0:00:21.2]} 68... Bc2 {[%clk 0:00:02.9]} 69.
Rb2 {[%clk 0:00:21.8]} 69... Kd1 {[%clk 0:00:03]} 70. Nc4 {[%clk 0:00:20.9]}
70... Kc1 {[%clk 0:00:03.4]} 71. Ra2 {[%clk 0:00:21]} 71... Rc8 {[%clk
0:00:03.6]} 72. Ne3 {[%clk 0:00:20]} 72... Rc5 {[%clk 0:00:03.6]} 73. Rxc2+
{[%clk 0:00:19.6]} 73... Rxc2 {[%clk 0:00:03.5]} 74. Nxc2 {[%clk 0:00:20.5]}
74... Kxc2 {[%clk 0:00:04.2]} 75. Kxf5 {[%clk 0:00:21.4]} 75... Kd3 {[%clk
0:00:05]} 76. f4 {[%clk 0:00:21.3]} 76... Kd4 {[%clk 0:00:05.9]} 77. Kg6 {[%clk
0:00:21.8]} 77... Ke4 {[%clk 0:00:06.8]} 78. f5 {[%clk 0:00:22.4]} 1-0

[Event "Early-Titled-Tuesday-Blitz-February-13-2024"]
[Site "Chess.com"]
[Date "2024.02.13"]
[Round "11"]
[White "Mariia89"]
[Black "egnfanclub"]
[Result "1-0"]
[WhiteElo "2214"]
[BlackElo "2344"]
[TimeControl "180+1"]
[EndTime "10:11:36 PST"]
[Termination "Mariia89 won on time"]

1. d4 {[%clk 0:02:52.8]} 1... d5 {[%clk 0:02:59.5]} 2. c4 {[%clk 0:02:50]} 2...
c6 {[%clk 0:02:59.7]} 3. e3 {[%clk 0:02:49.9]} 3... Nf6 {[%clk 0:02:59.5]} 4.
Nc3 {[%clk 0:02:50]} 4... e6 {[%clk 0:03:00]} 5. Nf3 {[%clk 0:02:45.7]} 5...
Nbd7 {[%clk 0:02:58.9]} 6. Bd3 {[%clk 0:02:46.1]} 6... dxc4 {[%clk 0:02:58.7]}
7. Bxc4 {[%clk 0:02:46.5]} 7... b5 {[%clk 0:02:59.6]} 8. Bd3 {[%clk 0:02:46.6]}
8... a6 {[%clk 0:03:00.1]} 9. O-O {[%clk 0:02:46.8]} 9... c5 {[%clk 0:03:00.6]}
10. Qe2 {[%clk 0:02:45.2]} 10... Bb7 {[%clk 0:03:00.4]} 11. Rd1 {[%clk
0:02:45.3]} 11... c4 {[%clk 0:03:00]} 12. Bb1 {[%clk 0:02:45]} 12... Be7 {[%clk
0:02:57.3]} 13. e4 {[%clk 0:02:45]} 13... O-O {[%clk 0:02:54.9]} 14. e5 {[%clk
0:02:43.4]} 14... Nd5 {[%clk 0:02:54.7]} 15. Ne4 {[%clk 0:02:40.6]} 15... h6
{[%clk 0:02:40.5]} 16. a3 {[%clk 0:02:30.1]} 16... Qb6 {[%clk 0:02:13.6]} 17.
Qc2 {[%clk 0:02:29.3]} 17... f5 {[%clk 0:02:10.4]} 18. exf6 {[%clk 0:02:27.5]}
18... N7xf6 {[%clk 0:02:10.5]} 19. Nxf6+ {[%clk 0:02:03.1]} 19... Nxf6 {[%clk
0:02:10.2]} 20. Ne5 {[%clk 0:02:03.5]} 20... Be4 {[%clk 0:02:02.8]} 21. Qe2
{[%clk 0:02:01.7]} 21... Bxb1 {[%clk 0:01:56.9]} 22. Rxb1 {[%clk 0:02:02.6]}
22... Rad8 {[%clk 0:01:56.9]} 23. Be3 {[%clk 0:02:02.3]} 23... Nd5 {[%clk
0:01:48.4]} 24. Qg4 {[%clk 0:01:28.9]} 24... Nxe3 {[%clk 0:01:45.6]} 25. fxe3
{[%clk 0:01:29]} 25... Rf5 {[%clk 0:01:32]} 26. Rf1 {[%clk 0:01:21.9]} 26...
Rdf8 {[%clk 0:01:31.9]} 27. Rxf5 {[%clk 0:01:21.6]} 27... exf5 {[%clk
0:01:28.3]} 28. Qf3 {[%clk 0:01:18.9]} 28... f4 {[%clk 0:01:19]} 29. Qd5+ {[%clk
0:01:17.8]} 29... Kh7 {[%clk 0:01:16.4]} 30. Qe4+ {[%clk 0:01:09.9]} 30... Kg8
{[%clk 0:01:07.3]} 31. exf4 {[%clk 0:01:09.3]} 31... Rd8 {[%clk 0:00:44]} 32.
Nc6 {[%clk 0:01:09.2]} 32... Bf6 {[%clk 0:00:26.6]} 33. Nxd8 {[%clk 0:01:04.5]}
33... Qxd8 {[%clk 0:00:23.4]} 34. Rd1 {[%clk 0:01:02.7]} 34... Qd6 {[%clk
0:00:21]} 35. h3 {[%clk 0:01:01.8]} 35... b4 {[%clk 0:00:20.4]} 36. axb4 {[%clk
0:01:01.2]} 36... Qxb4 {[%clk 0:00:20.7]} 37. Qe2 {[%clk 0:00:47.7]} 37... a5
{[%clk 0:00:20]} 38. Kh1 {[%clk 0:00:34.7]} 38... c3 {[%clk 0:00:20.3]} 39. bxc3
{[%clk 0:00:28.2]} 39... Qxc3 {[%clk 0:00:21.2]} 40. d5 {[%clk 0:00:28.1]} 40...
Qg3 {[%clk 0:00:21.1]} 41. Qc4 {[%clk 0:00:22.1]} 41... Kh8 {[%clk 0:00:19.3]}
42. d6 {[%clk 0:00:21.5]} 42... Bd8 {[%clk 0:00:18.9]} 43. d7 {[%clk 0:00:19.5]}
43... Qh4 {[%clk 0:00:15]} 44. Qf7 {[%clk 0:00:17]} 44... Kh7 {[%clk 0:00:13.2]}
45. Qf5+ {[%clk 0:00:16.3]} 45... Kg8 {[%clk 0:00:12.2]} 46. Qg4 {[%clk
0:00:12.6]} 46... Qe7 {[%clk 0:00:11.8]} 47. Qf3 {[%clk 0:00:10.9]} 47... Bc7
{[%clk 0:00:11.5]} 48. Qb3+ {[%clk 0:00:09.8]} 48... Kh7 {[%clk 0:00:11.2]} 49.
Qc4 {[%clk 0:00:10.1]} 49... Bd8 {[%clk 0:00:09.8]} 50. Qd4 {[%clk 0:00:10.2]}
50... a4 {[%clk 0:00:08.9]} 51. Qxa4 {[%clk 0:00:09.3]} 51... Qe2 {[%clk
0:00:09.2]} 52. Qd4 {[%clk 0:00:09.1]} 52... Qe7 {[%clk 0:00:06.7]} 53. Qd3+
{[%clk 0:00:09.2]} 53... g6 {[%clk 0:00:06.5]} 54. Rd2 {[%clk 0:00:07.5]} 54...
Kg7 {[%clk 0:00:06.5]} 55. Re2 {[%clk 0:00:07.4]} 55... Qf6 {[%clk 0:00:06.6]}
56. Qe4 {[%clk 0:00:07.3]} 56... h5 {[%clk 0:00:06.6]} 57. Qe6 {[%clk
0:00:07.1]} 57... Qh4 {[%clk 0:00:06.2]} 58. Qe4 {[%clk 0:00:05.5]} 58... Qf6
{[%clk 0:00:04.8]} 59. Kh2 {[%clk 0:00:05.9]} 59... h4 {[%clk 0:00:04.7]} 60.
Qf3 {[%clk 0:00:05.5]} 60... Bc7 {[%clk 0:00:05]} 61. Re4 {[%clk 0:00:05.3]}
61... g5 {[%clk 0:00:05.4]} 62. Qg4 {[%clk 0:00:04.3]} 62... Bxf4+ {[%clk
0:00:05.1]} 63. Rxf4 {[%clk 0:00:04]} 63... Qd6 {[%clk 0:00:04.9]} 64. d8=Q
{[%clk 0:00:01.3]} 64... Qxd8 {[%clk 0:00:03.5]} 65. Rf1 {[%clk 0:00:01.6]}
65... Qd6+ {[%clk 0:00:03.7]} 66. Kh1 {[%clk 0:00:02]} 66... Kg6 {[%clk
0:00:03]} 67. Qf5+ {[%clk 0:00:01.9]} 67... Kh5 {[%clk 0:00:02.3]} 68. Qf3+
{[%clk 0:00:01.9]} 68... Kh6 {[%clk 0:00:02.4]} 69. Qf6+ {[%clk 0:00:02.2]} 1-0

[Event "Early-Titled-Tuesday-Blitz-February-13-2024"]
[Site "Chess.com"]
[Date "2024.02.13"]
[Round "11"]
[White "Attacks_Hurricane"]
[Black "verrbaa"]
[Result "0-1"]
[WhiteElo "2343"]
[BlackElo "2481"]
[TimeControl "180+1"]
[EndTime "10:11:42 PST"]
[Termination "verrbaa won by checkmate"]

1. e4 {[%clk 0:03:00.9]} 1... c5 {[%clk 0:02:58]} 2. Nf3 {[%clk 0:03:00.7]} 2...
e6 {[%clk 0:02:57.7]} 3. d4 {[%clk 0:02:59.7]} 3... cxd4 {[%clk 0:02:58]} 4. Bg5
{[%clk 0:03:00.4]} 4... Qb6 {[%clk 0:02:52.7]} 5. Qxd4 {[%clk 0:02:59]} 5...
Qxd4 {[%clk 0:02:37.6]} 6. Nxd4 {[%clk 0:02:59.9]} 6... a6 {[%clk 0:02:35.2]} 7.
Nc3 {[%clk 0:02:58.2]} 7... d6 {[%clk 0:02:30.5]} 8. O-O-O {[%clk 0:02:57.5]}
8... h6 {[%clk 0:02:25.9]} 9. Bh4 {[%clk 0:02:56]} 9... Bd7 {[%clk 0:02:05]} 10.
a4 {[%clk 0:02:43.3]} 10... Nc6 {[%clk 0:01:59.5]} 11. Nxc6 {[%clk 0:02:43.3]}
11... Bxc6 {[%clk 0:02:00.4]} 12. Bg3 {[%clk 0:02:42.9]} 12... Rd8 {[%clk
0:01:57.3]} 13. f3 {[%clk 0:02:39.4]} 13... Nf6 {[%clk 0:01:55.7]} 14. Bc4
{[%clk 0:02:35.9]} 14... Be7 {[%clk 0:01:53.2]} 15. Rd2 {[%clk 0:02:34.3]} 15...
O-O {[%clk 0:01:35]} 16. Rhd1 {[%clk 0:02:32.4]} 16... e5 {[%clk 0:01:33]} 17.
Kb1 {[%clk 0:02:28.6]} 17... Rb8 {[%clk 0:01:22.7]} 18. Bh4 {[%clk 0:02:24.7]}
18... g5 {[%clk 0:01:20.3]} 19. Bf2 {[%clk 0:02:24]} 19... b5 {[%clk 0:01:20.3]}
20. axb5 {[%clk 0:02:22]} 20... axb5 {[%clk 0:01:21.2]} 21. Bb3 {[%clk
0:02:13.3]} 21... b4 {[%clk 0:01:12.8]} 22. Nd5 {[%clk 0:02:13.3]} 22... Nxd5
{[%clk 0:01:10]} 23. Bxd5 {[%clk 0:02:14.2]} 23... Bb5 {[%clk 0:01:07.4]} 24.
Ba7 {[%clk 0:02:03.3]} 24... Rbc8 {[%clk 0:01:06]} 25. Bb6 {[%clk 0:02:03]}
25... Bd7 {[%clk 0:00:32.6]} 26. Ba5 {[%clk 0:01:51.3]} 26... Rb8 {[%clk
0:00:32.6]} 27. Bb3 {[%clk 0:01:50.8]} 27... Rfc8 {[%clk 0:00:30.1]} 28. Rd5
{[%clk 0:01:39.2]} 28... Be6 {[%clk 0:00:28.5]} 29. R5d3 {[%clk 0:01:37.9]}
29... Rb5 {[%clk 0:00:26.2]} 30. Rd5 {[%clk 0:00:56.7]} 30... Bxd5 {[%clk
0:00:23]} 31. Rxd5 {[%clk 0:00:57.6]} 31... Rxd5 {[%clk 0:00:14.5]} 32. Bxd5
{[%clk 0:00:57.3]} 32... Rb8 {[%clk 0:00:13.6]} 33. b3 {[%clk 0:00:38.1]} 33...
Bd8 {[%clk 0:00:13.6]} 34. Bxd8 {[%clk 0:00:32.8]} 34... Rxd8 {[%clk 0:00:14.5]}
35. Kb2 {[%clk 0:00:33.1]} 35... Rc8 {[%clk 0:00:13.8]} 36. Bc4 {[%clk
0:00:33.1]} 36... Kf8 {[%clk 0:00:13.6]} 37. c3 {[%clk 0:00:33.3]} 37... bxc3+
{[%clk 0:00:11.8]} 38. Kxc3 {[%clk 0:00:34.2]} 38... f6 {[%clk 0:00:11.8]} 39.
Kd3 {[%clk 0:00:33.6]} 39... Ke7 {[%clk 0:00:12.1]} 40. Ke3 {[%clk 0:00:28.3]}
40... Ra8 {[%clk 0:00:11.5]} 41. Kf2 {[%clk 0:00:28.7]} 41... Ra2+ {[%clk
0:00:11.3]} 42. Kg3 {[%clk 0:00:29.6]} 42... h5 {[%clk 0:00:11.1]} 43. h3 {[%clk
0:00:24.9]} 43... h4+ {[%clk 0:00:10]} 44. Kh2 {[%clk 0:00:25.6]} 44... Rb2
{[%clk 0:00:10.3]} 45. Bd5 {[%clk 0:00:25.8]} 45... Kd7 {[%clk 0:00:10.4]} 46.
Bc4 {[%clk 0:00:21.7]} 46... Kc7 {[%clk 0:00:10.7]} 47. Bd5 {[%clk 0:00:20.7]}
47... Kb6 {[%clk 0:00:11.1]} 48. Bc4 {[%clk 0:00:19.3]} 48... Kc5 {[%clk
0:00:11.4]} 49. Bd5 {[%clk 0:00:18.4]} 49... Kd4 {[%clk 0:00:11.8]} 50. Bc4
{[%clk 0:00:18.3]} 50... Ke3 {[%clk 0:00:12.2]} 51. Bd5 {[%clk 0:00:16.3]} 51...
Kf2 {[%clk 0:00:10.4]} 52. Be6 {[%clk 0:00:15.7]} 52... Ke3 {[%clk 0:00:07.2]}
53. Bc4 {[%clk 0:00:15.5]} 53... Kd2 {[%clk 0:00:05.5]} 54. Kg1 {[%clk 0:00:13]}
54... Kc3 {[%clk 0:00:04.8]} 55. Bd5 {[%clk 0:00:13.2]} 55... Rd2 {[%clk
0:00:04.2]} 56. Kf1 {[%clk 0:00:12.6]} 56... Rxd5 {[%clk 0:00:03.4]} 57. exd5
{[%clk 0:00:12.2]} 57... Kxb3 {[%clk 0:00:04.1]} 58. Ke2 {[%clk 0:00:11.8]}
58... Kc4 {[%clk 0:00:04.7]} 59. Ke3 {[%clk 0:00:12.3]} 59... Kxd5 {[%clk
0:00:05.3]} 60. Kd3 {[%clk 0:00:12.7]} 60... Ke6 {[%clk 0:00:04.4]} 61. Ke4
{[%clk 0:00:13.3]} 61... d5+ {[%clk 0:00:04.9]} 62. Ke3 {[%clk 0:00:14.2]} 62...
Kd6 {[%clk 0:00:05.3]} 63. Kf2 {[%clk 0:00:13.3]} 63... Kc5 {[%clk 0:00:05.9]}
64. g3 {[%clk 0:00:13.9]} 64... Kc4 {[%clk 0:00:05.5]} 65. f4 {[%clk 0:00:12.6]}
65... exf4 {[%clk 0:00:05.1]} 66. gxh4 {[%clk 0:00:10.3]} 66... gxh4 {[%clk
0:00:04.7]} 67. Kf3 {[%clk 0:00:10.9]} 67... d4 {[%clk 0:00:05.3]} 68. Kxf4
{[%clk 0:00:11.8]} 68... d3 {[%clk 0:00:05.6]} 69. Kg4 {[%clk 0:00:12.7]} 69...
d2 {[%clk 0:00:06.2]} 70. Kxh4 {[%clk 0:00:13.6]} 70... d1=Q {[%clk 0:00:06.5]}
71. Kg3 {[%clk 0:00:13.5]} 71... Qh5 {[%clk 0:00:06]} 72. Kh2 {[%clk 0:00:13.5]}
72... f5 {[%clk 0:00:06.3]} 73. Kg3 {[%clk 0:00:14.4]} 73... Kd5 {[%clk
0:00:06.2]} 74. Kf4 {[%clk 0:00:15.3]} 74... Qxh3 {[%clk 0:00:05.7]} 75. Kg5
{[%clk 0:00:15.6]} 75... Qg4+ {[%clk 0:00:05.6]} 76. Kf6 {[%clk 0:00:16.1]}
76... f4 {[%clk 0:00:06.2]} 77. Kf7 {[%clk 0:00:17]} 77... f3 {[%clk 0:00:06.4]}
78. Ke7 {[%clk 0:00:17.9]} 78... Qe6+ {[%clk 0:00:06.3]} 79. Kd8 {[%clk
0:00:18.8]} 79... Qg6 {[%clk 0:00:05.8]} 80. Kc7 {[%clk 0:00:19.7]} 80... f2
{[%clk 0:00:05.1]} 81. Kb7 {[%clk 0:00:20.4]} 81... f1=Q {[%clk 0:00:05.2]} 82.
Ka7 {[%clk 0:00:21.3]} 82... Qc1 {[%clk 0:00:05.1]} 83. Kb8 {[%clk 0:00:22.2]}
83... Qf7 {[%clk 0:00:04.6]} 84. Ka8 {[%clk 0:00:22.5]} 84... Qf8+ {[%clk
0:00:04.7]} 85. Ka7 {[%clk 0:00:22.3]} 85... Qb4 {[%clk 0:00:04]} 86. Ka6 {[%clk
0:00:22.3]} 86... Qca3# {[%clk 0:00:04.4]} 0-1